[Event "28th Hit Open-A 2024"]
[Site "Nova Gorica"]
[Date "2024.01.27"]
[Round "2.18"]
[White "Centrih, Aleks"]
[Black "Pagnutti, Lorenzo"]
[Result "1-0"]
[ECO "C55"]
[WhiteElo "2082"]
[BlackElo "1859"]
[Annotator "NA RC"]
[PlyCount "77"]
[EventDate "2024.01.22"]
[EventType "swiss"]
[EventCountry "SLO"]
[SourceTitle "playchess.com"]
[Source "ChessBase"]
[SourceQuality "1"]
[TimeControl "5400+30"]

1. e4 {[%emt 0:00:11]} e5 {[%emt 0:00:14]} 2. Nf3 {[%emt 0:00:08]} Nc6 {[%emt 0:00:06]} 3. Bc4 {[%emt 0:00:07]} Nf6 {[%emt 0:00:21]} 4. d3 {[%emt 0:00:06]} Be7 {[%emt 0:00:27]} 5. O-O {[%emt 0:00:19]} d6 {[%emt 0:00:12]} 6. a4 {[%emt 0:00:18]} O-O {[%emt 0:00:31]} 7. Re1 {[%emt 0:00:06]} Be6 {[%emt 0:00:28]} 8. Nbd2 {[%emt 0:00:17]} h6 {[%emt 0:00:58]} 9. c3 {[%emt 0:00:30]} Bxc4 {[%emt 0:05:17]} 10. Nxc4 {[%emt 0:00:08]} a5 {[%emt 0:00:33]} 11. Qb3 {[%emt 0:07:39]} Qd7 {[%emt 0:07:21]} 12. Ne3 {[%emt 0:05:47]} Rfb8 {[%emt 0:01:06]} 13. Qb5 {[%emt 0:22:17]} Qc8 {[%emt 0:16:30]} 14. Nd5 {[%emt 0:08:54]} Qd8 {[%emt 0:10:38]} 15. h3 {[%emt 0:08:34]} Bf8 {[%emt 0:00:39]} 16. d4 {[%emt 0:10:34]} exd4 {[%emt 0:00:49]} 17. Nxd4 {[%emt 0:02:48]} Nxd4 {[%emt 0:01:33]} 18. cxd4 {[%emt 0:00:26]} c6 {[%emt 0:05:38]} 19. Nxf6+ {[%emt 0:00:05]} Qxf6 {[%emt 0:00:12]} 20. Qd3 {[%emt 0:00:05]} Qg6 {[%emt 0:01:18]} 21. d5 {[%emt 0:05:15]} Re8 {[%emt 0:03:05]} 22. Bd2 {[%emt 0:02:13]} Re5 {[%emt 0:02:39]} 23. dxc6 {[%emt 0:01:23]} bxc6 {[%emt 0:00:24]} 24. Bc3 {[%emt 0:01:45]} Rg5 {[%emt 0:00:35]} 25. Qf3 {[%emt 0:00:24]} Re8 {[%emt 0:07:29]} 26. Rad1 {[%emt 0:05:12]} Qe6 {[%emt 0:00:00]} 27. Rd3 {[%emt 0:03:57]} Qd7 {[%emt 0:00:00]} 28. Qd1 {[%emt 0:02:54]} Qc7 {[%emt 0:01:10]} 29. f4 {[%emt 0:01:24]} Rc5 {[%emt 0:03:10]} 30. Rg3 {[%emt 0:05:12]} d5 {[%emt 0:07:20]} 31. Bxg7 {[%emt 0:06:15]} Bxg7 {[%emt 0:00:48]} 32. Qd4 {[%emt 0:00:05]} f6 {[%emt 0:00:35]} 33. Qxc5 {[%emt 0:00:04]} dxe4 {[%emt 0:01:43]} 34. Qf5 {[%emt 0:00:26]} Qa7+ {[%emt 0:01:43]} 35. Ree3 {[%emt 0:00:48]} Qd4 {[%emt 0:00:35]} 36. Kh2 {[%emt 0:00:22]} c5 {[%emt 0:00:48]} 37. Rb3 {[%emt 0:01:18]} Kh8 {[%emt 0:02:36]} 38. Rb7 {[%emt 0:00:12]} Rg8 {[%emt 0:00:15]} 39. Rg6 {[%emt 0:00:44]} 1-0

[Event "28th Hit Open-A 2024"]
[Site "Nova Gorica"]
[Date "2024.01.27"]
[Round "2.19"]
[White "Tonel, Giulia"]
[Black "Hrescak, Ivana"]
[Result "0-1"]
[ECO "B08"]
[WhiteElo "1851"]
[BlackElo "2117"]
[Annotator "NA RC"]
[PlyCount "118"]
[EventDate "2024.01.22"]
[EventType "swiss"]
[EventCountry "SLO"]
[SourceTitle "playchess.com"]
[Source "ChessBase"]
[SourceQuality "1"]
[TimeControl "5400+30"]

1. e4 {[%emt 0:00:07]} d6 {[%emt 0:03:48]} 2. d4 {[%emt 0:01:45]} g6 {[%emt 0:00:07]} 3. Nc3 {[%emt 0:00:29]} a6 {[%emt 0:00:16]} 4. a4 {[%emt 0:00:45]} Bg7 {[%emt 0:00:20]} 5. Be3 {[%emt 0:05:24]} Nd7 {[%emt 0:00:41]} 6. Nf3 {[%emt 0:02:01]} Ngf6 {[%emt 0:02:59]} 7. h3 {[%emt 0:05:45]} O-O {[%emt 0:02:15]} 8. Be2 {[%emt 0:05:45]} e5 {[%emt 0:07:53]} 9. dxe5 {[%emt 0:08:38]} dxe5 {[%emt 0:00:37]} 10. O-O {[%emt 0:00:28]} h6 {[%emt 0:01:03]} 11. Qc1 {[%emt 0:10:45]} Kh7 {[%emt 0:02:50]} 12. b4 {[%emt 0:01:32]} b6 {[%emt 0:04:21]} 13. Rd1 {[%emt 0:03:17]} Qe7 {[%emt 0:05:37]} 14. Qa3 {[%emt 0:02:40]} Re8 {[%emt 0:09:19]} 15. Nd2 {[%emt 0:07:42]} Bb7 {[%emt 0:06:00]} 16. Bc4 {[%emt 0:03:28]} Bf8 {[%emt 0:07:59]} 17. Qb3 {[%emt 0:05:56]} Kg8 {[%emt 0:05:12]} 18. Rab1 {[%emt 0:01:45]} Rec8 {[%emt 0:05:02]} 19. f3 {[%emt 0:02:15]} Qe8 {[%emt 0:01:34]} 20. Nf1 {[%emt 0:04:05]} a5 {[%emt 0:06:20]} 21. b5 {[%emt 0:10:15]} Nc5 {[%emt 0:01:24]} 22. Qa2 {[%emt 0:00:21]} Rd8 {[%emt 0:02:29]} 23. Kf2 {[%emt 0:03:14]} Rab8 {[%emt 0:04:18]} 24. Rd2 {[%emt 0:05:14]} Rxd2+ {[%emt 0:02:19]} 25. Nxd2 {[%emt 0:00:07]} Rd8 {[%emt 0:00:24]} 26. Rd1 {[%emt 0:00:47]} Bc8 {[%emt 0:02:00]} 27. Nb3 {[%emt 0:02:34]} Rxd1 {[%emt 0:00:53]} 28. Nxd1 {[%emt 0:00:06]} Ne6 {[%emt 0:00:27]} 29. c3 {[%emt 0:01:54]} Qe7 {[%emt 0:04:23]} 30. g3 {[%emt 0:02:12]} Nd8 {[%emt 0:03:06]} 31. h4 {[%emt 0:00:25]} Nb7 {[%emt 0:01:07]} 32. Ke2 {[%emt 0:00:41]} Nd6 {[%emt 0:01:15]} 33. Nd2 {[%emt 0:00:38]} Nh5 {[%emt 0:01:23]} 34. Bf2 {[%emt 0:01:03]} Qd7 {[%emt 0:03:17]} 35. Ne3 {[%emt 0:00:38]} Ng7 {[%emt 0:01:53]} 36. Nd5 {[%emt 0:00:18]} Qd8 {[%emt 0:00:06]} 37. Be3 {[%emt 0:00:25]} Ne6 {[%emt 0:00:48]} 38. Bb3 {[%emt 0:00:50]} Kh7 {[%emt 0:01:28]} 39. Nf1 {[%emt 0:00:30]} Nb7 {[%emt 0:00:52]} 40. Qd2 {[%emt 0:01:28]} Nbc5 {[%emt 0:00:34]} 41. Bc2 {[%emt 0:00:10]} Bb7 {[%emt 0:01:03]} 42. Nh2 {[%emt 0:00:23]} h5 {[%emt 0:00:27]} 43. Nf1 {[%emt 0:00:41]} c6 {[%emt 0:00:22]} 44. bxc6 {[%emt 0:00:41]} Bxc6 {[%emt 0:00:01]} 45. Qd1 {[%emt 0:00:20]} Bg7 {[%emt 0:01:13]} 46. Bf2 {[%emt 0:01:36]} b5 {[%emt 0:00:31]} 47. axb5 {[%emt 0:00:16]} Bxb5+ {[%emt 0:00:01]} 48. Ke1 {[%emt 0:00:12]} a4 {[%emt 0:00:30]} 49. Nfe3 {[%emt 0:00:40]} Qa5 {[%emt 0:00:18]} 50. f4 {[%emt 0:00:37]} exf4 {[%emt 0:00:27]} 51. gxf4 {[%emt 0:00:11]} Nxf4 {[%emt 0:01:08]} 52. Bg3 {[%emt 0:00:47]} Nfd3+ {[%emt 0:00:47]} 53. Bxd3 {[%emt 0:00:41]} Nxd3+ {[%emt 0:00:14]} 54. Kd2 {[%emt 0:00:10]} a3 {[%emt 0:00:36]} 55. Qf3 {[%emt 0:00:28]} Qa7 {[%emt 0:00:40]} 56. Bc7 {[%emt 0:00:32]} Ne5 {[%emt 0:00:26]} 57. Qf2 {[%emt 0:00:40]} a2 {[%emt 0:00:26]} 58. Bxe5 {[%emt 0:00:52]} Bxe5 {[%emt 0:00:31]} 59. Nf6+ {[%emt 0:00:18]} Bxf6 {[%emt 0:00:28]} 0-1

[Event "28th Hit Open-A 2024"]
[Site "Nova Gorica"]
[Date "2024.01.27"]
[Round "2.20"]
[White "Budai, Leonardo"]
[Black "Mestek, Igor"]
[Result "1-0"]
[ECO "B28"]
[WhiteElo "1847"]
[BlackElo "2080"]
[Annotator "NA RC"]
[PlyCount "83"]
[EventDate "2024.01.22"]
[EventType "swiss"]
[EventCountry "SLO"]
[SourceTitle "playchess.com"]
[Source "ChessBase"]
[SourceQuality "1"]
[TimeControl "5400+30"]

1. e4 {[%emt 0:00:01]} c5 {[%emt 0:00:46]} 2. Nf3 {[%emt 0:00:12]} a6 {[%emt 0:01:06]} 3. c4 {[%emt 0:00:16]} Nc6 {[%emt 0:00:28]} 4. Nc3 {[%emt 0:00:25]} d6 {[%emt 0:00:54]} 5. d3 {[%emt 0:00:22]} g6 {[%emt 0:01:41]} 6. Be3 {[%emt 0:08:16]} Bg7 {[%emt 0:01:10]} 7. Be2 {[%emt 0:05:57]} e5 {[%emt 0:09:13]} 8. O-O {[%emt 0:02:58]} Rb8 {[%emt 0:02:30]} 9. a4 {[%emt 0:01:10]} Nge7 {[%emt 0:01:22]} 10. Qd2 {[%emt 0:02:59]} h6 {[%emt 0:05:26]} 11. Ne1 {[%emt 0:20:01]} Nd4 {[%emt 0:03:56]} 12. Bd1 {[%emt 0:00:28]} g5 {[%emt 0:01:46]} 13. a5 {[%emt 0:25:01]} O-O {[%emt 0:03:41]} 14. h4 {[%emt 0:06:53]} f6 {[%emt 0:06:10]} 15. Nd5 {[%emt 0:01:28]} Ng6 {[%emt 0:05:15]} 16. h5 {[%emt 0:01:57]} Nf4 {[%emt 0:02:16]} 17. Bxd4 {[%emt 0:04:41]} cxd4 {[%emt 0:03:05]} 18. g4 {[%emt 0:00:36]} Ne6 {[%emt 0:05:15]} 19. Nb6 {[%emt 0:01:34]} Bd7 {[%emt 0:00:36]} 20. Nc2 {[%emt 0:00:43]} Nc5 {[%emt 0:02:27]} 21. Nb4 {[%emt 0:00:31]} Bc6 {[%emt 0:01:34]} 22. f3 {[%emt 0:05:24]} Rf7 {[%emt 0:00:12]} 23. Bc2 {[%emt 0:01:33]} Bf8 {[%emt 0:00:18]} 24. Rfc1 {[%emt 0:00:27]} Kg7 {[%emt 0:00:13]} 25. N4d5 {[%emt 0:04:09]} Ne6 {[%emt 0:04:25]} 26. Ba4 {[%emt 0:01:25]} Nc5 {[%emt 0:00:49]} 27. Bc2 {[%emt 0:01:20]} Nd7 {[%emt 0:00:43]} 28. b4 {[%emt 0:01:00]} Nxb6 {[%emt 0:02:21]} 29. Nxb6 {[%emt 0:00:07]} Qe8 {[%emt 0:00:32]} 30. Ba4 {[%emt 0:01:03]} Be7 {[%emt 0:02:55]} 31. Bxc6 {[%emt 0:01:35]} Qxc6 {[%emt 0:04:03]} 32. Qb2 {[%emt 0:00:16]} f5 {[%emt 0:01:48]} 33. b5 {[%emt 0:00:35]} Qe8 {[%emt 0:00:31]} 34. exf5 {[%emt 0:00:17]} e4 {[%emt 0:00:37]} 35. fxe4 {[%emt 0:01:02]} Bf6 {[%emt 0:00:05]} 36. Nd5 {[%emt 0:00:17]} Qe5 {[%emt 0:00:08]} 37. Qh2 {[%emt 0:00:15]} Qxh2+ {[%emt 0:01:31]} 38. Kxh2 {[%emt 0:00:01]} Be5+ {[%emt 0:00:08]} 39. Kg2 {[%emt 0:00:10]} Rc8 {[%emt 0:00:48]} 40. bxa6 {[%emt 0:00:53]} bxa6 {[%emt 0:00:07]} 41. Rcb1 {[%emt 0:00:05]} Rff8 {[%emt 0:01:16]} 42. Rb6 {[%emt 0:00:28]} 1-0

[Event "28th Hit Open-A 2024"]
[Site "Nova Gorica"]
[Date "2024.01.27"]
[Round "2.21"]
[White "Debevec, Blaz"]
[Black "Pagano, Sergio"]
[Result "1-0"]
[ECO "B18"]
[WhiteElo "2077"]
[BlackElo "1821"]
[Annotator "NA RC"]
[PlyCount "79"]
[EventDate "2024.01.22"]
[EventType "swiss"]
[EventCountry "SLO"]
[SourceTitle "playchess.com"]
[Source "ChessBase"]
[SourceQuality "1"]
[TimeControl "5400+30"]

1. e4 {[%emt 0:00:04]} c6 {[%emt 0:00:11]} 2. Nc3 {[%emt 0:01:05]} d5 {[%emt 0:00:40]} 3. d4 {[%emt 0:00:40]} dxe4 {[%emt 0:00:21]} 4. Nxe4 {[%emt 0:00:07]} h6 {[%emt 0:00:19]} 5. Nf3 {[%emt 0:05:37]} Bf5 {[%emt 0:00:30]} 6. Ng3 {[%emt 0:00:38]} Bh7 {[%emt 0:00:07]} 7. Bd3 {[%emt 0:00:40]} Bxd3 {[%emt 0:00:31]} 8. Qxd3 {[%emt 0:00:04]} Nf6 {[%emt 0:02:10]} 9. Bd2 {[%emt 0:00:38]} e6 {[%emt 0:01:27]} 10. O-O-O {[%emt 0:00:43]} Nbd7 {[%emt 0:01:28]} 11. Rhe1 {[%emt 0:01:04]} Qc7 {[%emt 0:03:01]} 12. Ne4 {[%emt 0:05:35]} Be7 {[%emt 0:06:59]} 13. g3 {[%emt 0:00:27]} O-O-O {[%emt 0:02:42]} 14. Kb1 {[%emt 0:01:49]} c5 {[%emt 0:04:31]} 15. Bf4 {[%emt 0:02:35]} Qc6 {[%emt 0:06:00]} 16. Nxf6 {[%emt 0:01:46]} Bxf6 {[%emt 0:04:22]} 17. d5 {[%emt 0:01:11]} Qb6 {[%emt 0:03:18]} 18. Qb3 {[%emt 0:00:26]} Qxb3 {[%emt 0:00:35]} 19. axb3 {[%emt 0:00:10]} exd5 {[%emt 0:01:31]} 20. Rxd5 {[%emt 0:00:31]} b6 {[%emt 0:02:42]} 21. Red1 {[%emt 0:00:50]} g5 {[%emt 0:01:28]} 22. Be3 {[%emt 0:01:17]} Ne5 {[%emt 0:00:44]} 23. Nxe5 {[%emt 0:01:19]} Bxe5 {[%emt 0:00:18]} 24. c3 {[%emt 0:01:19]} Bg7 {[%emt 0:04:47]} 25. Kc2 {[%emt 0:00:44]} Rxd5 {[%emt 0:00:23]} 26. Rxd5 {[%emt 0:00:08]} Rd8 {[%emt 0:00:33]} 27. Rf5 {[%emt 0:00:38]} Rd7 {[%emt 0:00:29]} 28. f4 {[%emt 0:00:18]} f6 {[%emt 0:04:59]} 29. h4 {[%emt 0:01:04]} g4 {[%emt 0:01:56]} 30. c4 {[%emt 0:03:36]} Kd8 {[%emt 0:01:20]} 31. b4 {[%emt 0:01:03]} cxb4 {[%emt 0:00:49]} 32. c5 {[%emt 0:01:06]} b3+ {[%emt 0:05:23]} 33. Kc3 {[%emt 0:00:31]} bxc5 {[%emt 0:01:21]} 34. Bxc5 {[%emt 0:00:49]} Ke8 {[%emt 0:00:58]} 35. Bd4 {[%emt 0:00:15]} Kf7 {[%emt 0:01:59]} 36. Ra5 {[%emt 0:00:36]} Ke6 {[%emt 0:05:41]} 37. f5+ {[%emt 0:01:03]} Kd6 {[%emt 0:00:36]} 38. Kxb3 {[%emt 0:01:18]} Kc6 {[%emt 0:01:00]} 39. Kc4 {[%emt 0:00:38]} h5 {[%emt 0:01:43]} 40. Ra6+ {[%emt 0:00:38]} 1-0

[Event "28th Hit Open-A 2024"]
[Site "Nova Gorica"]
[Date "2024.01.27"]
[Round "2.22"]
[White "Novak, Rok"]
[Black "Markocic, Tine"]
[Result "0-1"]
[ECO "B41"]
[WhiteElo "1777"]
[BlackElo "2055"]
[Annotator "NA RC"]
[PlyCount "112"]
[EventDate "2024.01.22"]
[EventType "swiss"]
[EventCountry "SLO"]
[SourceTitle "playchess.com"]
[Source "ChessBase"]
[SourceQuality "1"]
[TimeControl "5400+30"]

1. e4 {[%emt 0:00:06]} c5 {[%emt 0:00:42]} 2. Nf3 {[%emt 0:00:08]} e6 {[%emt 0:00:38]} 3. d4 {[%emt 0:00:06]} cxd4 {[%emt 0:00:07]} 4. Nxd4 {[%emt 0:00:06]} a6 {[%emt 0:00:28]} 5. c4 {[%emt 0:00:12]} Nf6 {[%emt 0:01:19]} 6. Nc3 {[%emt 0:00:11]} Bb4 {[%emt 0:01:15]} 7. Qd3 {[%emt 0:06:57]} d5 {[%emt 0:18:47]} 8. exd5 {[%emt 0:00:45]} exd5 {[%emt 0:03:06]} 9. Be2 {[%emt 0:00:24]} Nc6 {[%emt 0:06:57]} 10. Nxc6 {[%emt 0:02:14]} bxc6 {[%emt 0:00:07]} 11. O-O {[%emt 0:06:38]} Be6 {[%emt 0:07:48]} 12. Rd1 {[%emt 0:07:12]} O-O {[%emt 0:08:55]} 13. Bg5 {[%emt 0:05:25]} Be7 {[%emt 0:05:19]} 14. cxd5 {[%emt 0:03:12]} Nxd5 {[%emt 0:01:57]} 15. Bxe7 {[%emt 0:00:51]} Qxe7 {[%emt 0:00:07]} 16. Bf3 {[%emt 0:06:02]} Rfd8 {[%emt 0:04:54]} 17. a3 {[%emt 0:05:16]} Nb6 {[%emt 0:15:44]} 18. Qe2 {[%emt 0:03:33]} Nc4 {[%emt 0:04:10]} 19. Bxc6 {[%emt 0:03:27]} Rxd1+ {[%emt 0:01:14]} 20. Rxd1 {[%emt 0:01:39]} Rb8 {[%emt 0:00:06]} 21. Nd5 {[%emt 0:08:57]} Qh4 {[%emt 0:01:38]} 22. g3 {[%emt 0:01:55]} Rxb2 {[%emt 0:00:04]} 23. Qxe6 {[%emt 0:02:18]} fxe6 {[%emt 0:00:42]} 24. gxh4 {[%emt 0:00:08]} Ne5 {[%emt 0:01:27]} 25. Nb4 {[%emt 0:03:19]} Rb3 {[%emt 0:00:56]} 26. Rd6 {[%emt 0:06:09]} Ng6 {[%emt 0:01:43]} 27. Rxe6 {[%emt 0:01:35]} Rb1+ {[%emt 0:00:10]} 28. Kg2 {[%emt 0:01:16]} Nf4+ {[%emt 0:00:07]} 29. Kg3 {[%emt 0:00:38]} Nxe6 {[%emt 0:00:05]} 30. Bd5 {[%emt 0:01:11]} Kf7 {[%emt 0:01:13]} 31. Nxa6 {[%emt 0:02:25]} Rc1 {[%emt 0:02:50]} 32. a4 {[%emt 0:02:20]} Kf6 {[%emt 0:00:33]} 33. Nb4 {[%emt 0:02:27]} Rc3+ {[%emt 0:02:33]} 34. f3 {[%emt 0:02:33]} Ra3 {[%emt 0:00:14]} 35. Bc6 {[%emt 0:05:24]} Nd4 {[%emt 0:00:14]} 36. Bd7 {[%emt 0:02:59]} Nxf3 {[%emt 0:01:43]} 37. Kf4 {[%emt 0:02:54]} Nxh4 {[%emt 0:00:17]} 38. Nd5+ {[%emt 0:02:23]} Kf7 {[%emt 0:00:09]} 39. Ke5 {[%emt 0:00:33]} Nf3+ {[%emt 0:00:49]} 40. Kd6 {[%emt 0:00:14]} Nxh2 {[%emt 0:00:06]} 41. Be6+ {[%emt 0:02:52]} Kf8 {[%emt 0:00:26]} 42. Nb6 {[%emt 0:00:09]} g5 {[%emt 0:00:32]} 43. Kc5 {[%emt 0:01:25]} g4 {[%emt 0:00:22]} 44. Kb4 {[%emt 0:00:13]} g3 {[%emt 0:00:16]} 45. Bd5 {[%emt 0:00:23]} Ra2 {[%emt 0:00:15]} 46. a5 {[%emt 0:00:28]} g2 {[%emt 0:00:09]} 47. Bxg2 {[%emt 0:00:07]} Rxg2 {[%emt 0:00:07]} 48. a6 {[%emt 0:00:36]} Rg7 {[%emt 0:03:55]} 49. Kb5 {[%emt 0:00:50]} Nf3 {[%emt 0:01:50]} 50. Nd5 {[%emt 0:01:14]} Rd7 {[%emt 0:05:26]} 51. Nf6 {[%emt 0:01:06]} Rf7 {[%emt 0:00:05]} 52. Nxh7+ {[%emt 0:00:31]} Rxh7 {[%emt 0:00:07]} 53. Kb6 {[%emt 0:00:06]} Ne5 {[%emt 0:01:08]} 54. a7 {[%emt 0:00:35]} Nc4+ {[%emt 0:00:09]} 55. Ka6 {[%emt 0:00:22]} Rh6+ {[%emt 0:00:06]} 56. Kb7 {[%emt 0:00:52]} Nb6 {[%emt 0:00:20]} 0-1

[Event "28th Hit Open-A 2024"]
[Site "Nova Gorica"]
[Date "2024.01.27"]
[Round "2.23"]
[White "Trybus, Daniel"]
[Black "Gricnik, Tine"]
[Result "0-1"]
[ECO "A03"]
[WhiteElo "2039"]
[BlackElo "1758"]
[Annotator "NA RC"]
[PlyCount "50"]
[EventDate "2024.01.22"]
[EventType "swiss"]
[EventCountry "SLO"]
[SourceTitle "playchess.com"]
[Source "ChessBase"]
[SourceQuality "1"]
[TimeControl "5400+30"]

1. g3 {[%emt 0:00:12]} d5 {[%emt 0:00:19]} 2. Bg2 {[%emt 0:00:05]} c6 {[%emt 0:00:16]} 3. f4 {[%emt 0:00:21]} Nf6 {[%emt 0:00:38]} 4. Nf3 {[%emt 0:00:05]} e6 {[%emt 0:00:34]} 5. O-O {[%emt 0:03:09]} Bd6 {[%emt 0:00:37]} 6. b3 {[%emt 0:02:06]} O-O {[%emt 0:01:20]} 7. Bb2 {[%emt 0:00:12]} Nbd7 {[%emt 0:00:14]} 8. Be5 {[%emt 0:01:19]} Qc7 {[%emt 0:05:26]} 9. d4 {[%emt 0:02:12]} Ne4 {[%emt 0:01:10]} 10. Nbd2 {[%emt 0:03:54]} Nc3 {[%emt 0:00:42]} 11. Qe1 {[%emt 0:00:02]} Nxe5 {[%emt 0:00:20]} 12. Nxe5 {[%emt 0:01:47]} Ba3 {[%emt 0:01:25]} 13. Ndc4 {[%emt 0:02:50]} Nxe2+ {[%emt 0:04:13]} 14. Qxe2 {[%emt 0:00:24]} dxc4 {[%emt 0:00:07]} 15. Nxc4 {[%emt 0:00:12]} Be7 {[%emt 0:01:22]} 16. Rad1 {[%emt 0:03:37]} b6 {[%emt 0:06:24]} 17. Ne5 {[%emt 0:06:57]} Bb7 {[%emt 0:00:41]} 18. f5 {[%emt 0:02:10]} exf5 {[%emt 0:01:51]} 19. Rxf5 {[%emt 0:00:02]} Bd6 {[%emt 0:02:12]} 20. Rdf1 {[%emt 0:01:25]} Rae8 {[%emt 0:00:38]} 21. Be4 {[%emt 0:05:10]} Bxe5 {[%emt 0:00:23]} 22. dxe5 {[%emt 0:00:26]} g6 {[%emt 0:00:33]} 23. R5f4 {[%emt 0:01:36]} Qxe5 {[%emt 0:01:44]} 24. Qf3 {[%emt 0:02:03]} f5 {[%emt 0:01:49]} 25. g4 {[%emt 0:03:38]} Qd4+ {[%emt 0:00:59]} 0-1

[Event "28th Hit Open-A 2024"]
[Site "Nova Gorica"]
[Date "2024.01.27"]
[Round "2.24"]
[White "Mazzi, Leonardo"]
[Black "Bazilius, Augustinas"]
[Result "1/2-1/2"]
[ECO "B47"]
[WhiteElo "1647"]
[BlackElo "2030"]
[Annotator "NA RC"]
[PlyCount "65"]
[EventDate "2024.01.22"]
[EventType "swiss"]
[EventCountry "SLO"]
[SourceTitle "playchess.com"]
[Source "ChessBase"]
[SourceQuality "1"]
[TimeControl "5400+30"]

1. e4 {[%emt 0:00:15]} c5 {[%emt 0:00:01]} 2. Nf3 {[%emt 0:00:06]} e6 {[%emt 0:00:06]} 3. d4 {[%emt 0:00:04]} cxd4 {[%emt 0:00:07]} 4. Nxd4 {[%emt 0:00:02]} Nc6 {[%emt 0:00:11]} 5. Nc3 {[%emt 0:02:07]} Qc7 {[%emt 0:00:02]} 6. Ndb5 {[%emt 0:07:28]} Qb8 {[%emt 0:01:22]} 7. Be3 {[%emt 0:06:41]} a6 {[%emt 0:00:06]} 8. Nd4 {[%emt 0:00:05]} Nf6 {[%emt 0:01:36]} 9. Bd3 {[%emt 0:01:09]} Ne5 {[%emt 0:01:45]} 10. h3 {[%emt 0:02:37]} b5 {[%emt 0:00:18]} 11. f4 {[%emt 0:01:17]} Nxd3+ {[%emt 0:01:13]} 12. cxd3 {[%emt 0:00:23]} Bc5 {[%emt 0:17:47]} 13. Qf3 {[%emt 0:10:49]} Qa7 {[%emt 0:03:24]} 14. Nce2 {[%emt 0:00:21]} Bb7 {[%emt 0:01:04]} 15. Rc1 {[%emt 0:02:50]} d6 {[%emt 0:02:08]} 16. O-O {[%emt 0:01:38]} h5 {[%emt 0:01:25]} 17. Qg3 {[%emt 0:03:55]} g6 {[%emt 0:27:38]} 18. Rxc5 {[%emt 0:19:54]} Qxc5 {[%emt 0:10:23]} 19. Nxe6 {[%emt 0:03:05]} Qc2 {[%emt 0:00:26]} 20. Bd4 {[%emt 0:08:52]} Rg8 {[%emt 0:09:54]} 21. Bxf6 {[%emt 0:10:22]} fxe6 {[%emt 0:00:21]} 22. Nd4 {[%emt 0:01:06]} Qc5 {[%emt 0:00:06]} 23. Kh2 {[%emt 0:01:24]} Kd7 {[%emt 0:00:11]} 24. Qh4 {[%emt 0:02:19]} Rae8 {[%emt 0:04:07]} 25. Nb3 {[%emt 0:02:03]} Qe3 {[%emt 0:04:45]} 26. Rf3 {[%emt 0:03:32]} Qe2 {[%emt 0:00:17]} 27. Qg5 {[%emt 0:00:59]} Ref8 {[%emt 0:01:55]} 28. Bc3 {[%emt 0:01:37]} Qd1 {[%emt 0:03:52]} 29. Qh6 {[%emt 0:02:03]} Rf7 {[%emt 0:00:38]} 30. Rg3 {[%emt 0:01:01]} Qf1 {[%emt 0:02:02]} 31. Rf3 {[%emt 0:00:38]} Qd1 {[%emt 0:01:06]} 32. Rg3 {[%emt 0:00:06]} Qf1 {[%emt 0:03:15]} 33. Rf3 {[%emt 0:02:45]} 1/2-1/2